Workbook

Sheet 供求总体人数
A1: 阳江市公共就业服务机构市场职业供求状况分析 2025年三季度 表一：供求总体人数
B2: K6PTE5PB[B2] | C2: 需求人数 | D2: 求职人数 | E2: 求人倍率
A3: K6PTE5PB[A3] | B3: K6PTE5PB[B3] | C3: 人 | D3: 人 | E3: 倍
A4: 甲 | B4: 序号 | C4: 1 | D4: 2 | E4: 3
A5: 本期有效数 | B5: 1 | C5: =按产业分组的需求人数!C8 -> 9,815 | D5: =按职业分组的供求人数!E14 -> 11,234 | E5: =ROUND(C5/D5,2) -> 0.87

Sheet 按产业分组的需求人数
A1: 续表一：按产业分组的需求人数
C2: 需求人数 | D2: 所占比重
C3: 人 | D3: %
A4: 甲 | B4: 序号 | C4: 4 | D4: 5
A5: 第一产业 | B5: 3 | C5: =按行业分组的需求人数!C5-按行业分组的需求人数!C6 -> 3 | D5: =ROUND(C5*100/C8,2) -> 0.03
A6: 第二产业 | B6: 4 | C6: =按行业分组的需求人数!C7-按行业分组的需求人数!C8+按行业分组的需求人数!C9-按行业分组的需求人数!C10+按行业分组的需求人数!C11+按行业分组的需求人数!C12 -> 2,483 | D6: =ROUND(C6*100/C8,2) -> 25.30
A7: 第三产业 | B7: 5 | C7: =按行业分组的需求人数!C6+按行业分组的需求人数!C8+按行业分组的需求人数!C10+SUM(按行业分组的需求人数!C13:C27) -> 7,329 | D7: =ROUND(C7*100/C8,2) -> 74.67
A8: 合计 | C8: =C5+C6+C7 -> 9,815 | D8: =ROUND(C8*100/C8,0) -> 100

Sheet 按行业分组的需求人数
A1: 续表二：按行业分组的需求人数
C2: 需求人数 | D2: 所占比重
C3: 人 | D3: %
A4: 甲 | B4: 序号 | C4: 6 | D4: 7
A5: 农、林、牧、渔业 | B5: 7 | C5: =9815*D5 -> 3 | D5: 0.03%
A6: 其中，农、林、牧、渔专业及辅助性活动 | B6: 8 | C6: =9815*D6 -> 0 | D6: 0.00
A7: 采矿业 | B7: 9 | C7: 0 | D7: 0.00
A8: 其中，开采专业及辅助性活动 | B8: 10 | C8: 0 | D8: 0.00
A9: 制造业 | B9: 11 | C9: 5,477 | D9: 55.80%
A10: 其中，金属制品、机械和设备修理业 | B10: 12 | C10: 3,256 | D10: 0.00
A11: 电力、热力、燃气及水生产和供应业 | B11: 13 | C11: 176 | D11: 1.79%
A12: 建筑业 | B12: 14 | C12: 86 | D12: 0.88%
A13: 批发和零售业 | B13: 15 | C13: 153 | D13: 1.56%
A14: 交通运输、仓储和邮政业 | B14: 16 | C14: 94 | D14: 0.96%
A15: 住宿和餐饮业 | B15: 17 | C15: 2,544 | D15: 25.92%
A16: 信息传输、软件和信息技术服务业 | B16: 18 | C16: 520 | D16: 5.30%
A17: 金融业 | B17: 19 | C17: 63 | D17: 0.64%
A18: 房地产业 | B18: 20 | C18: 320 | D18: 3.26%
A19: 租赁和商务服务业 | B19: 21 | C19: 67 | D19: 0.68%
A20: 科学研究和技术服务业 | B20: 22 | C20: 0 | D20: 0.00
A21: 水利、环境和公共设施管理业 | B21: 23 | C21: 0 | D21: 0.00
A22: 居民服务、修理和其他服务业 | B22: 24 | C22: 169 | D22: 1.72%
A23: 教育 | B23: 25 | C23: 80 | D23: 0.81%
A24: 卫生和社会工作 | B24: 26 | C24: 0 | D24: 0.00
A25: 文化、体育和娱乐业 | B25: 27 | C25: 64 | D25: 0.65%
A26: 公共管理、社会保障和社会组织 | B26: 28 | C26: 0 | D26: 0.00
A27: 国际组织 | B27: 29 | C27: 0 | D27: 0.00
A28: 合计 | C28: =C5+C7+C9+C11+C12+C13+C14+C15+C16+C17+C18+C19+C20+C21+C22+C23+C24+C25+C26+C27 -> 9,815 | D28: =SUM(D5:D27) -> 1

Sheet 按用人单位性质划分的需求人数
A1: 续表三：按用人单位性质划分的需求人数 | D1: 用人单位需求情况
C2: 需求人数 | D2: 所占比重
C3: 人 | D3: %
A4: 甲 | B4: 序号 | C4: 8 | D4: 9
A5: 企 业 | B5: 31 | C5: =C6+C15+C16+C17 -> 9,815 | D5: 0.00
A6: 其中： 内资企业 | B6: 32 | C6: =C7+C8+C9+C10+C11+C12+C13+C14 -> 6,769 | D6: 0.00
A7: 国有企业 | B7: 33 | C7: =9815*D7 -> 21 | D7: 0.21%
A8: 集体企业 | B8: 34 | C8: =9815*D8 -> 0 | D8: 0.00
A9: 股份合作企业 | B9: 35 | C9: 26 | D9: 0.26%
A10: 联营企业 | B10: 36 | C10: 13 | D10: 0.13%
A11: 有限责任公司 | B11: 37 | C11: 4,353 | D11: 44.35%
A12: 股份有限公司 | B12: 38 | C12: 798 | D12: 8.13%
A13: 私营企业 | B13: 39 | C13: 1,524 | D13: 15.53%
A14: 其他企业 | B14: 40 | C14: 35 | D14: 0.36%
A15: 港、澳、台商投资企业 | B15: 41 | C15: 145 | D15: 1.48%
A16: 外商投资企业 | B16: 42 | C16: 39 | D16: 0.40%
A17: 个体经营 | B17: 43 | C17: 2,861 | D17: 29.15%
A18: 事 业 | B18: 44 | C18: 0 | D18: 0.00
A19: 机 关 | B19: 45 | C19: 0 | D19: 0.00
A20: 其 他 | B20: 46 | D20: 0.00
A21: 合计 | C21: =C5+C18+C19+C20 -> 9,815 | D21: =SUM(D5:D20) -> 1

Sheet 按职业分组的供求人数
A1: 续表四：按职业分组的供求人数
C2: 劳动力供求人数比较
C3: 需求人数 | D3: 需求比重 | E3: 求职人数 | F3: 求职比重 | G3: 求人倍率
C4: 人 | D4: % | E4: 人 | F4: % | G4: 倍
A5: 甲 | B5: 序号 | C5: 10 | D5: 11 | E5: 12 | F5: 13 | G5: 14
A6: 单位负责人 | B6: 48 | C6: =9815*D6 -> 22 | D6: 0.22% | E6: =11234*F6 -> 31 | F6: 0.28% | G6: =IFERROR(ROUND(C6/(E6+$E$13*C6/$C$14),2),"-") -> 0.69
A7: 专业技术人员 | B7: 49 | C7: =9815*D7 -> 880 | D7: 8.97% | E7: =11234*F7 -> 1,149 | F7: 10.23% | G7: 0.77
A8: 办事人员和有关人员 | B8: 50 | C8: 2,428 | D8: 24.74% | E8: 3,489 | F8: 31.06% | G8: 0.70
A9: 社会生产服务和生活服务人员 | B9: 51 | C9: 2,325 | D9: 23.69% | E9: 2,607 | F9: 23.21% | G9: 0.89
A10: 农林牧渔业生产及辅助人员 | B10: 52 | C10: 2 | D10: 0.02% | E10: 4 | F10: 0.04% | G10: 0.44
A11: 生产制造及有关人员 | B11: 53 | C11: 2,227 | D11: 22.69% | E11: 2,263 | F11: 20.14% | G11: 0.98
A12: 其他 | B12: 54 | C12: 1,931 | D12: 19.67% | E12: 1,690 | F12: 15.04% | G12: 1.14
A13: 无要求 | B13: 55 | C13: —— | D13: —— | E13: 0 | F13: 0.00 | G13: ——
A14: 合计 | C14: =C6+C7+C8+C9+C10+C11+C12 -> 9,815 | D14: =SUM(D6:D13) -> 1 | E14: =E6+E7+E8+E9+E10+E11+E12+E13 -> 11,234 | F14: =SUM(F6:F13) -> 1 | G14: ——

Sheet 需求大于求职缺口最大的前二十个职业情况
A1: 续表五：需求大于求职缺口最大的前二十个职业情况(职业细类)
A2: 项 目 | B2: 代码 | C2: 职业代码 | D2: 需求大于求职缺口最大的前二十个职业（职业细类）
D3: 需求人数 | E3: 求职人数 | F3: 缺口数 | G3: 求人倍率
A4: 甲 | B4: 乙 | C4: 15 | D4: 16 | E4: 17 | F4: 18 | G4: 19
A5: 建筑五金制品制作工 | B5: 56 | C5: 6-19-01-02 | D5: 50 | E5: 32 | F5: =D5-E5 -> 18 | G5: =IFERROR(ROUND(D5/E5,2),"-") -> 1.56
A6: 设备工程技术人员 | B6: 57 | C6: 2-02-07-04 | D6: 135 | E6: 63 | F6: =D6-E6 -> 72 | G6: 2.14
A7: 计算机硬件工程技术人员 | B7: 58 | C7: 2-02-10-02 | D7: 35 | E7: 6 | F7: 29 | G7: 5.83
A8: 养老护理员 | B8: 59 | C8: 4-10-01-05 | D8: 60 | E8: 13 | F8: 47 | G8: 4.62
A9: 婴幼儿发展引导员 | B9: 60 | C9: 4-10-01-01 | D9: 50 | E9: 23 | F9: 27 | G9: 2.17
A10: 采矿工程技术人员 | B10: 61 | C10: 2-02-03-02 | D10: 6 | E10: 0 | F10: 6 | G10: -
A11: 日用五金制品制作工 | B11: 62 | C11: 6-19-01-05 | D11: 50 | E11: 13 | F11: 37 | G11: 3.85
A12: 电工 | B12: 63 | C12: 6-31-01-03 | D12: 25 | E12: 4 | F12: 21 | G12: 6.25
A13: 产品质量检验工程技术人员 | B13: 64 | C13: 2-02-31-01 | D13: 30 | E13: 2 | F13: 28 | G13: 15.00
A14: 产品设计工程技术人员 | B14: 65 | C14: 2-02-34-01 | D14: 10 | E14: 2 | F14: 8 | G14: 5.00
A15: 焊工 | B15: 66 | C15: 6-18-02-04 | D15: 10 | E15: 1 | F15: 9 | G15: 10.00
A16: 工程机械维修工 | B16: 67 | C16: 6-31-01-09 | D16: 30 | E16: 12 | F16: 18 | G16: 2.50
A17: 食品工程技术人员 | B17: 68 | C17: 2-02-24-00 | D17: 5 | E17: 0 | F17: 5 | G17: -
A18: 营销员 | B18: 69 | C18: 4-01-02-01 | D18: 35 | E18: 11 | F18: 24 | G18: 3.18
A19: 机械制造工程技术人员 | B19: 70 | C19: 2-02-07-02 | D19: 55 | E19: 24 | F19: 31 | G19: =IFERROR(ROUND(D19/E19,2),"-") -> 2.29
A20: 多工序数控机床操作调整工 | B20: 71 | C20: 6-18-01-07 | D20: 30 | E20: 8 | F20: 22 | G20: 3.75
A21: 装配钳工 | B21: 72 | C21: 6-20-01-01 | D21: 10 | E21: 0 | F21: 10 | G21: -
A22: 企业经理 | B22: 73 | C22: 1-06-01-02 | D22: 10 | E22: 0 | F22: 10 | G22: -
A23: 车工 | B23: 74 | C23: 6-18-01-01 | D23: 15 | E23: 2 | F23: 13 | G23: 7.50
A24: 电子设备装接工 | B24: 75 | C24: 6-25-04-07 | D24: 30 | E24: 11 | F24: 19 | G24: 2.73

Sheet 需求小于求职缺口最大的前二十个职业情况
A1: 续表六：需求小于求职缺口最大的前二十个职业（职业细类）
A2: 项 目 | B2: 代码 | C2: 职业代码 | D2: 需求小于求职缺口最大的前二十个职业（职业细类）
D3: 需求人数 | E3: 求职人数 | F3: 缺口数 | G3: 求人倍率
A4: 甲 | B4: 乙 | C4: 20 | D4: 21 | E4: 22 | F4: 23 | G4: 24
A5: 电子电气产品检验员 | B5: 76 | C5: 4-08-05-07 | D5: 20 | E5: 47 | F5: =E5-D5 -> 27 | G5: =IFERROR(ROUND(D5/E5,2),"-") -> 0.43
A6: 包装工 | B6: 77 | C6: 6-31-05-00 | D6: 30 | E6: 82 | F6: =E6-D6 -> 52 | G6: 0.37
A7: 保安员 | B7: 78 | C7: 4-07-05-01 | D7: 5 | E7: 43 | F7: 38 | G7: 0.12
A8: 砌筑工 | B8: 79 | C8: 6-29-01-01 | D8: 0 | E8: 50 | F8: 50 | G8: 0.00
A9: 制药工程技术人员 | B9: 80 | C9: 2-02-32-00 | D9: 0 | E9: 11 | F9: 11 | G9: 0.00
A10: 保洁员 | B10: 81 | C10: 4-09-08-01 | D10: 3 | E10: 45 | F10: 42 | G10: 0.07
A11: 米面主食制作工 | B11: 82 | C11: 6-02-03-01 | D11: 0 | E11: 72 | F11: 72 | G11: 0.00
A12: 计算机软件工程技术人员 | B12: 83 | C12: 2-02-10-03 | D12: 0 | E12: 33 | F12: 33 | G12: 0.00
A13: 电子仪器与电子测量工程技术人员 | B13: 84 | C13: 2-02-09-04 | D13: 0 | E13: 18 | F13: 18 | G13: 0.00
A14: 土木建筑工程技术人员 | B14: 85 | C14: 2-02-18-02 | D14: 0 | E14: 22 | F14: 22 | G14: 0.00
A15: 仓储管理员 | B15: 86 | C15: 4-02-06-01 | D15: 3 | E15: 62 | F15: 59 | G15: 0.05
A16: 收银员 | B16: 87 | C16: 4-01-02-04 | D16: 0 | E16: 52 | F16: 52 | G16: 0.00
A17: 客房服务员 | B17: 88 | C17: 4-03-01-02 | D17: 0 | E17: 38 | F17: 38 | G17: 0.00
A18: 装卸搬运工 | B18: 89 | C18: 4-02-05-01 | D18: 5 | E18: 42 | F18: 37 | G18: 0.12
A19: 计算机软件测试员 | B19: 90 | C19: 4-04-05-02 | D19: 0 | E19: 28 | F19: 28 | G19: 0.00
A20: 电子商务师 | B20: 91 | C20: 4-01-06-01 | D20: 0 | E20: 12 | F20: 12 | G20: 0.00
A21: 汽车维修工 | B21: 92 | C21: 4-12-01-01 | D21: 0 | E21: 53 | F21: 53 | G21: 0.00
A22: 农产品购销员 | B22: 93 | C22: 4-01-05-01 | D22: 0 | E22: 77 | F22: 77 | G22: 0.00
A23: 文字编辑 | B23: 94 | C23: 2-10-02-01 | D23: 7 | E23: 53 | F23: 46 | G23: 0.13
A24: 会计专业人员 | B24: 95 | C24: 2-06-03-00 | D24: 4 | E24: 62 | F24: 58 | G24: 0.06

Sheet 按求职人员类别分组的求职人数
A1: 续表七：按求职人员类别分组的求职人数
C2: 求职人数 | D2: 求职比重（%）
C3: 人 | D3: %
A4: 甲 | B4: 序号 | C4: 25 | D4: 26
A5: 新成长失业青年 | B5: 97 | C5: 4,786 | D5: 15.90%
A6: 其中：应届高校毕业生 | B6: 98 | C6: 3,946 | D6: =IFERROR(ROUND(C6*100/$C$5,2),"-") -> 82.45
A7: 失业人员 | B7: 99 | C7: 1,012 | D7: 9.01%
A8: 在业人员 | B8: 100 | C8: 1,363 | D8: 12.13%
A9: 退休人员 | B9: 101 | C9: 112 | D9: 1.00%
A10: 在学人员 | B10: 102 | C10: 1,584 | D10: 14.10%
A11: 本市农村求职人员 | B11: 103 | C11: 2,352 | D11: 47.64%
A12: 外地户籍求职人员 | B12: 104 | C12: 25 | D12: 0.22%
A13: 合计 | C13: =C5+C7+C8+C9+C10+C11+C12 -> 11,234 | D13: =SUM(D5:D12) -> 83.45

Sheet 按性别分组的供求人数
A1: 续表八：按性别分组的供求人数
C2: 劳动力供求人数比较
C3: 求职人数 | D3: 求职比重
C4: 人 | D4: %
A5: 甲 | B5: 序号 | C5: 29 | D5: 30
A6: 男 | B6: 106 | C6: =11234*D6 -> 6,458 | D6: 57.49%
A7: 女 | B7: 107 | C7: =11234*D7 -> 4,776 | D7: 42.51%
A8: 合计 | C8: =C6+C7 -> 11,234 | D8: =SUM(D6:D7) -> 1.00

Sheet 按年龄分组的供求人数
A1: 续表九：按年龄分组的供求人数
C2: 劳动力供求人数比较
C3: 需求人数 | D3: 需求比重 | E3: 求职人数 | F3: 求职比重 | G3: 求人倍率
C4: 人 | D4: % | E4: 人 | F4: % | G4: 倍
A5: 甲 | B5: 序号 | C5: 32 | D5: 33 | E5: 34 | F5: 35 | G5: 36
A6: 16-24岁 | B6: 110 | C6: =9815*D6 -> 3,042 | D6: 30.99% | E6: =11234*F6 -> 4,522 | F6: 40.25% | G6: =IFERROR(ROUND((C6+$C$10*E6/E11)/E6,2),"-") -> 0.81
A7: 25-34岁 | B7: 111 | C7: =9815*D7 -> 2,649 | D7: 26.99% | E7: =11234*F7 -> 3,141 | F7: 27.96% | G7: =IFERROR(ROUND((C7+C10*F7/100)/E7,2),"-") -> 0.84
A8: 35-44岁 | B8: 112 | C8: =9815*D8 -> 1,590 | D8: 16.20% | E8: =11234*F8 -> 2,021 | F8: 17.99% | G8: =IFERROR(ROUND((C8+C10*F8/100)/E8,2),"-") -> 0.79
A9: 45岁以上 | B9: 113 | C9: =9815*D9 -> 1,000 | D9: 10.19% | E9: =11234*F9 -> 1,550 | F9: 13.80% | G9: =IFERROR(ROUND((C9+C10*F9/100)/E9,2),"-") -> 0.65
A10: 无要求 | B10: 114 | C10: =9815*D10 -> 1,534 | D10: 15.63% | E10: —— | F10: 0 | G10: ——
A11: 合计 | C11: =C6+C7+C8+C9+C10 -> 9,815 | D11: =SUM(D6:D10) -> 1 | E11: =E6+E7+E8+E9 -> 11,234 | F11: =SUM(F6:F10) -> 1 | G11: =IFERROR(ROUND(C11/E11,2),"-") -> 0.87

Sheet 按文化程度分组的供求人数
A1: 续表十:按文化程度分组的供求人数
C2: 劳动力供求人数比较
C3: 需求人数 | D3: 需求比重 | E3: 求职人数 | F3: 求职比重 | G3: 求人倍率
C4: 人 | D4: % | E4: 人 | F4: % | G4: 倍
A5: 甲 | B5: 序号 | C5: 37 | D5: 38 | E5: 39 | F5: 40 | G5: 41
A6: 初中及以下 | B6: 116 | C6: =9815*D6 -> 2,092 | D6: 21.31% | E6: =11234*F6 -> 2,901 | F6: 25.82% | G6: =IFERROR(ROUND((C6+$C$12*E6/$E$13)/E6,2),"-") -> 0.81
A7: 高中 | B7: 117 | C7: =9815*D7 -> 3,214 | D7: 32.75% | E7: 3,890 | F7: 34.63% | G7: 0.92
A8: 其中：职高、技校、中专 | B8: 118 | C8: 2,466 | D8: 25.12% | E8: 2,273 | F8: 20.23% | G8: =IFERROR(ROUND((C12*E7/E13+C7)*C8/C7/E8,2),"-") -> 1.21
A9: 大专 | B9: 119 | C9: 2,800 | D9: 28.53% | E9: 3,706 | F9: 32.99% | G9: 0.85
A10: 大学 | B10: 120 | C10: 656 | D10: 6.68% | E10: 734 | F10: 6.53% | G10: 0.99
A11: 硕士以上 | B11: 121 | C11: 5 | D11: 0.05% | E11: 3 | F11: 0.03% | G11: 1.55
A12: 无要求 | B12: 122 | C12: 1,048 | D12: 10.68% | E12: —— | F12: 0 | G12: ——
A13: 合计 | C13: =C6+C7+C9+C10+C11+C12 -> 9,815 | D13: =SUM(D6:D12) -> 1 | E13: =E6+E7+E9+E10+E11 -> 11,234 | F13: =SUM(F6:F12) -> 1 | G13: ——

Sheet 按技术等级分组的供求人数
A1: 续表十一：按技术等级分组的供求人数
C2: 劳动力供求人数比较
C3: 需求人数 | D3: 需求比重 | E3: 求职人数 | F3: 求职比重 | G3: 求人倍率
C4: 人 | D4: % | E4: 人 | F4: % | G4: 倍
A5: 甲 | B5: 序号 | C5: 42 | D5: 43 | E5: 44 | F5: 45 | G5: 46
A6: 职业资格五级(初级技能) | B6: 124 | C6: =9815*D6 -> 686 | D6: 6.99% | E6: =11234*F6 -> 708 | F6: 6.30% | G6: =IFERROR((C6+$C$15*E6/$E$16)/E6,"-") -> 1.68
A7: 职业资格四级(中级技能) | B7: 125 | C7: =9815*D7 -> 391 | D7: 3.98% | E7: =11234*F7 -> 328 | F7: 2.92% | G7: 1.90
A8: 职业资格三级(高级技能) | B8: 126 | C8: 9 | D8: 0.09% | E8: 8 | F8: 0.07% | G8: 1.84
A9: 职业资格二级(技师) | B9: 127 | C9: 5 | D9: 0.05% | E9: 2 | F9: 0.02% | G9: 2.90
A10: 职业资格一级(高级技师) | B10: 128 | C10: 8 | D10: 0.08% | E10: 4 | F10: 0.04% | G10: 2.46
A11: 初级职称 | B11: 129 | C11: 692 | D11: 7.05% | E11: 716 | F11: 6.37% | G11: 1.68
A12: 中级职称 | B12: 130 | C12: 19 | D12: 0.19% | E12: 18 | F12: 0.16% | G12: 1.75
A13: 高级职称 | B13: 131 | C13: 4 | D13: 0.04% | E13: 2 | F13: 0.02% | G13: 2.46
A14: 无技术等级或职称 | B14: 132 | C14: —— | D14: 0 | E14: 9,448 | F14: 84.10% | G14: =IFERROR(($C$15*E14/$E$16)/E14,"-") -> 0.71
A15: 无要求 | B15: 133 | C15: =9815*D15 -> 8,002 | D15: 81.53% | E15: —— | F15: —— | G15: ——
A16: 合计 | C16: =C6+C7+C8+C9+C10+C11+C12+C13+C15 -> 9,815 | D16: =SUM(D6:D15) -> 1 | E16: =E6+E7+E8+E9+E10+E11+E12+E13+E14 -> 11,234 | F16: =SUM(F6:F15) -> 1 | G16: ——

Sheet 版本 (hidden)
A1: V1.1
